Cogmind - Beta 17.1 @@@ ROGUE MODE // 2026.09.07 @ 02:24:38 Player: EN-G1N Result: Destroyed by P-80 Master with Gamma Rifle Performance ------------- Evolutions (7) 3500 Regions Visited (10) 2000 Robots Destroyed (80) 400 Value Destroyed (3452) 3452 Prototype IDs (6) 120 Alien Tech Used (0) 0 Bonus (84) 84 TOTAL SCORE: 9556 Bonus ------- Follower Combat Kills 84 Cogmind --------- Core Integrity 0/1300 Matter 116/300 Energy 100/100 System Corruption 8% Temperature Cool (0) Movement Core (200) Ox3 Location -3/Research Parts ------- > --- POWER (2) -------- (None) > --- PROPULSION (4) --- (None) > --- UTILITY (12) ----- Medium Storage Unit Improved Targeting Computer > --- WEAPON (3) ------- (None) > --- INVENTORY (10) --- Field Propulsion Array Impulse Thruster Array Coolant Network Dispersion Rifle Quantum Rifle Nova Cannon Peak State ------------ > --- POWER ------------ Light Particle Reactor > --- PROPULSION ------- Field Propulsion Array Impulse Thruster Array > --- UTILITY ---------- Coolant Network Improved Coolant Injector Medium Storage Unit Experimental Energy Well Advanced Signal Interpreter Improved Targeting Computer Melee Analysis Suite Improved Target Analyzer Improved Transmission Jammer Advanced Transmission Jammer Phase Shifter > --- WEAPON ----------- (None) > --- INVENTORY -------- Particle Reactor Field Propulsion Array Impulse Thruster Array Dispersion Rifle Quantum Rifle Nova Cannon [Rating: 111] Favorites ----------- Power Cooled Deuterium Engine Engine Cooled Deuterium Engine Power Core Improved Fusion Compressor Reactor Light Particle Reactor Propulsion Improved Treads Treads Improved Treads Leg Multireflex Exoskeleton Wheel Wheel Flight Unit Field Propulsion Array Utility Advanced Heat Sink Device Advanced Heat Sink Storage Medium Storage Unit Processor Advanced Signal Interpreter Protection Hardened Medium Armor Plating Weapon Improved Medium Laser Energy Gun Improved Medium Laser Energy Cannon Heavy Particle Cannon Ballistic Gun Coil Gun Launcher Grenade Launcher Piercing Weapon Spear Build | -11 -10 -10 -10 -9 -8 -7 -6 -5 -4 -3 ------- Run | Yrd Mat Min Exi Min Mat Fac Fac Fac Fac Res Slots Evolved 14 | . . . . . 4 2 2 2 2 2 Power 1 | . . . . . . 1 . . . . Propulsion 2 | . . . . . . 1 . 1 . . Utility 10 | . . . . . 3 . 2 1 2 2 Weapon 1 | . . . . . 1 . . . . . Parts Attached 96 | 6 7 1 . 3 14 5 31 3 7 19 Power 17 | 1 . . . 1 2 3 3 . 2 5 Engine 9 | 1 . . . 1 1 3 3 . . . Core 3 | . . . . . 1 . . . 2 . Reactor 5 | . . . . . . . . . . 5 Propulsion 18 | 2 2 . . . 3 1 4 2 . 4 Treads 10 | 2 2 . . . 3 1 2 . . . Leg 4 | . . . . . . . 2 2 . . Wheel 1 | . . . . . . . . . . 1 Hover . | . . . . . . . . . . . Flight 3 | . . . . . . . . . . 3 Utility 43 | 1 3 . . 2 7 . 17 . 4 9 Device 21 | . 2 . . 1 3 . 7 . 3 5 Storage 5 | 1 . . . 1 1 . . . . 2 Processor 6 | . . . . . 1 . 2 . 1 2 Hackware . | . . . . . . . . . . . Protection 11 | . 1 . . . 2 . 8 . . . Artifact . | . . . . . . . . . . . Weapon 18 | 2 2 1 . . 2 1 7 1 1 1 Energy Gun 9 | . 2 . . . 1 1 4 1 . . Energy Cannon 4 | . . . . . 1 . 2 . 1 . Ballistic Gun 3 | 2 . . . . . . 1 . . . Ballistic Cannon . | . . . . . . . . . . . Launcher 1 | . . 1 . . . . . . . . Special Weapon . | . . . . . . . . . . . Impact Weapon . | . . . . . . . . . . . Slashing Weapon . | . . . . . . . . . . . Piercing Weapon 1 | . . . . . . . . . . 1 Special Melee Weapon . | . . . . . . . . . . . Unidentified Prototypes 6 | . 1 . . 1 . 1 1 . . 2 Parts Lost 56 | . . . . . 1 . 31 4 3 17 Power 11 | . . . . . . . 5 . 1 5 Propulsion 10 | . . . . . . . 5 1 . 4 Utility 24 | . . . . . . . 13 2 2 7 Weapon 11 | . . . . . 1 . 8 1 . 1 Highest Loss Streak 15 | . . . . . 1 . 15 3 3 11 To Critical Strikes . | . . . . . . . . . . . Average Backups 7 | 3 7 7 8 8 9 9 7 3 4 5 Power . | . 1 1 1 1 1 1 1 . . . Propulsion 1 | 2 2 2 2 2 2 1 1 2 1 2 Utility 3 | . 2 3 3 3 4 5 3 1 3 1 Weapon 1 | . 1 1 2 2 1 1 1 . . 1 Tool/Special . | . . . . . . . . . . . Unused Backups 35 | . 6 2 . . 7 6 7 . . 7 Power 3 | . . . . . 2 1 . . . . Propulsion 10 | . 4 . . . 2 . . . . 4 Utility 14 | . 1 2 . . 1 5 5 . . . Weapon 8 | . 1 . . . 2 . 2 . . 3 Tool/Special . | . . . . . . . . . . . Average Slot Usage (%) 88 | . 93 100 100 100 99 99 89 39 43 43 Engine 10 | . 13 14 14 14 8 11 11 . . . Treads 18 | . 27 28 28 28 18 23 15 . . . Leg 1 | . . . . . . . 1 10 10 2 Device 17 | . 8 14 14 14 23 14 24 13 9 11 Storage 8 | . 14 14 14 14 9 7 5 . . 5 Processor 4 | . . . . . 3 7 6 11 10 13 Protection 3 | . . . . . 8 7 5 . . . Energy Gun 16 | . 8 27 28 28 26 15 9 2 . . Energy Cannon 2 | . . . . . . 7 5 . 3 . Ballistic Gun 1 | . 18 . . . . . 2 . . . Peak Build Rating 111 | 6 16 16 16 22 41 53 71 55 82 111 Average Rating 39 | 4 9 15 16 16 37 49 60 49 64 66 On Entrance 28 | . 6 16 16 16 17 36 53 42 40 69 Avg Prop Armor Cover (%) 11 | . . . . . . . 9 13 . 11 Naked Turns . | . . . . . . . . . . . Heaviest Build 75 | 11 15 15 15 22 41 55 75 9 32 33 Greatest Support 80 | 40 46 46 46 46 46 62 80 72 72 72 Greatest Overweight (x) 4 | 3 2 . . . 1 . 1 . . 4 Average Overweight (x) . | 1 . . . . . . . . . . Largest Inventory Capacity 10 | 8 8 8 8 10 10 10 10 5 5 10 Average Capacity 8 | 7 8 8 8 9 10 10 9 5 5 7 Most Carried 10 | 8 8 8 8 9 10 10 10 5 5 10 Average Carried 8 | 3 7 7 8 8 9 9 8 4 4 6 Final Capacity 10 | 8 8 8 8 10 10 10 5 5 5 10 Final Carried 10 | 6 8 8 8 9 10 10 5 4 5 9 Class Distribution -------------------- 53% | Mutant 40% | Skirmisher 4% | Tank Dominant Class ---------------- Mutant | -10/Materials Mutant | -10/Mines Mutant | -10/Exiles Mutant | -9/Mines Skirmisher | -8/Materials Skirmisher | -7/Factory Skirmisher | -6/Factory Mutant | -5/Factory Mutant | -4/Factory Mutant | -3/Research Resources | -11 -10 -10 -10 -9 -8 -7 -6 -5 -4 -3 ----------- Run | Yrd Mat Min Exi Min Mat Fac Fac Fac Fac Res Matter Collected 1305 | 194 326 85 . 70 235 60 170 . 135 30 Remotely 188 | . 53 . . . . . . . 135 . Salvage Created 3793 | . 228 186 . 173 984 352 1388 . . 482 Parts 175 | . 7 10 . 12 58 18 54 . . 16 Haulers Intercepted 1 | . . . . . . . 1 . . . Recyclers Shooed 6 | . . . . . 1 1 4 . . . Parts Field Recycled . | . . . . . . . . . . . Retrieved Matter . | . . . . . . . . . . . Parts Self-Destructed . | . . . . . . . . . . . Prevented . | . . . . . . . . . . . Parts Restored . | . . . . . . . . . . . Kills | -11 -10 -10 -10 -9 -8 -7 -6 -5 -4 -3 ------- Run | Yrd Mat Min Exi Min Mat Fac Fac Fac Fac Res Combat Hostiles Destroyed 67 | . 5 5 . 6 18 6 20 . . 7 Melee 7 | . . . . . . . . . . 7 Guns 48 | . 5 5 . 6 17 5 10 . . . Cannons 6 | . . . . . . 1 5 . . . AOE 2 | . . . . . . . 2 . . . Classes Destroyed 12 | . 1 2 . . 3 1 5 . . . Worker 3 | . . . . . . . 3 . . . Builder 2 | . . . . . . 1 . . . 1 Tunneler 1 | . . 1 . . . . . . . . Hauler 1 | . . . . . . . 1 . . . Recycler 2 | . . . . . 1 . 1 . . . Watcher 4 | . . . . . 2 . 2 . . . Swarmer 9 | . . 1 . 3 3 . 2 . . . Grunt 27 | . 5 4 . 3 7 3 5 . . . Brawler 3 | . . . . . . . 3 . . . Sentry 12 | . . . . . 8 3 . . . 1 Specialist 3 | . . . . . . . 3 . . . Programmer 13 | . . . . . . . 7 . . 6 Best Kill Streak 13 | . 2 2 . 3 5 2 13 . . 5 Combat Bots Only 10 | . 2 2 . 3 4 2 10 . . 5 Max Kills in Single Turn 2 | . 1 1 . 1 2 1 2 . . 1 Gunslinging 1 | . . . . . 1 . . . . . Exploded 1 | . . . . . . . 1 . . . Melee 1 | . . . . . . . . . . 1 Uniques/NPCs Destroyed . | . . . . . . . . . . . Combat | -11 -10 -10 -10 -9 -8 -7 -6 -5 -4 -3 -------- Run | Yrd Mat Min Exi Min Mat Fac Fac Fac Fac Res Hostile Shots Fired 1115 | . 27 10 . 11 70 60 554 30 52 301 Missed 445 | . 8 2 . 2 14 27 222 8 22 140 Hits 670 | . 19 8 . 9 56 33 332 22 30 161 Melee 1 | . . . . . . . . . 1 . Projectile 669 | . 19 8 . 9 56 33 332 22 29 161 AOE 1 | . . . . . . . 1 . . . Critical Strikes 16 | . . 1 . . . . 4 1 3 7 Part Disruptions 4 | . . . . . . . 3 . . 1 Actively Blocked 1 | . . . . . . . 1 . . . Damage Taken 11098 | . 238 116 . 78 786 220 5420 430 647 3163 Core 2439 | . 54 38 . 8 103 11 615 92 196 1322 Absorbed by Shields . | . . . . . . . . . . . Redirected to Shielding 110 | . . . . . . . 110 . . . Ignored by Resistances 296 | . . . . . . . 296 . . . Regen/Repaired (Parts) 92 | . . . . . . 28 64 . . . Core Remaining (%) 76 | 100 . . . 60 81 98 27 90 82 . Volleys Fired 180 | . 28 12 . 9 48 12 70 . 1 . Largest 3 | . 2 2 . 2 3 3 3 . 1 . Hottest 211 | . 112 112 . 112 187 211 211 . 110 . Shots Fired 448 | . 56 23 . 18 144 37 169 . 1 . Gun 373 | . 56 22 . 18 141 25 111 . . . Cannon 74 | . . . . . 3 12 58 . 1 . Launcher 1 | . . 1 . . . . . . . . Special . | . . . . . . . . . . . Kinetic 74 | . 46 . . . . . 28 . . . Thermal 371 | . 10 22 . 18 144 37 140 . . . Explosive 1 | . . 1 . . . . . . . . Electromagnetic 2 | . . . . . . . 1 . 1 . Robot Hit Streak 17 | . 8 6 . 4 13 14 17 . . . Robot Miss Streak 5 | . 2 2 . 1 5 2 3 . 2 . Penetration Max . | . . . . . . . . . . . Secondary Targets 5 | . . 1 . . 4 . . . . . Max Gunslinging Chain 1 | . . 1 . . 1 . . . . . Shots Hit Robots 311 | . 27 15 . 12 91 26 112 . . 28 Core Hits 159 | . 11 8 . 7 38 21 58 . 1 15 Critical Kills 2 | . . . . . . . 2 . . . Critical Parts Destroyed 2 | . . . . . . . 2 . . . Critical Strikes 23 | . . . . 1 10 1 5 . . 6 Burn 13 | . . . . 1 10 1 1 . . . Meltdown 2 | . . . . . . . 2 . . . Destroy 2 | . . . . . . . 2 . . . Impale 6 | . . . . . . . . . . 6 Melee Attacks 31 | . . . . . . . . . . 31 Impact . | . . . . . . . . . . . Slashing . | . . . . . . . . . . . Piercing 31 | . . . . . . . . . . 31 Sneak Attacks 1 | . . . . . . . . . . 1 Combat Hostiles . | . . . . . . . . . . . Follow-up Attacks . | . . . . . . . . . . . Damage Inflicted 7950 | . 307 280 . 207 1608 551 4044 . 56 897 Guns 4607 | . 300 256 . 207 1576 396 1872 . . . Cannons 1342 | . . . . . 25 150 1167 . . . Explosions 998 | . . . . . . . 998 . . . Melee 858 | . . . . . . . . . . 858 Ramming 145 | . 7 24 . . 7 5 7 . 56 39 Kinetic 605 | . 249 . . . . . 356 . . . Thermal 6166 | . 51 256 . 207 1601 546 3505 . . . Explosive 176 | . . . . . . . 176 . . . Electromagnetic . | . . . . . . . . . . . Impact . | . . . . . . . . . . . Slashing . | . . . . . . . . . . . Piercing 858 | . . . . . . . . . . 858 Highest Corruption 8 | . . . . . . 1 6 . 4 8 Average Corruption 2 | . . . . . . 1 3 . 2 5 Corruption Purged . | . . . . . . . . . . . Corruption Blocked . | . . . . . . . . . . . Effects 39 | . . . . . . 3 31 . . 5 Message Errors 12 | . . . . . . 2 9 . . 1 Matter Fused 7 | . . . . . . . 5 . . 2 Heat Flow Errors 4 | . . . . . . . 4 . . . Energy Discharges 2 | . . . . . . . 1 . . 1 Parts Rejected 2 | . . . . . . . 1 . . 1 Data Loss (minor) 6 | . . . . . . . 6 . . . Misfires 4 | . . . . . . 1 3 . . . Alerts 1 | . . . . . . . 1 . . . Weapon Failures 1 | . . . . . . . 1 . . . Overload Shots . | . . . . . . . . . . . Overflow Damage 354 | . . . . . . . 346 . . 8 Projectiles 17 | . . . . . . . 17 . . . Explosions 329 | . . . . . . . 329 . . . Melee 8 | . . . . . . . . . . 8 Knockbacks 3 | . . 1 . . . . . . 2 . Impact 3 | . . 1 . . . . . . 2 . Kinetic . | . . . . . . . . . . . Secondary . | . . . . . . . . . . . Self-Inflicted Damage 419 | . . . . . . . 409 . . 10 Shots 6 | . . . . . . . 6 . . . Rammed 18 | . 1 4 . . 2 1 2 . . 8 Targets Rammed 28 | . 1 5 . . 2 1 3 . 7 9 Kicked 9 | . . . . . . . 1 . 7 1 Crushed 1 | . . 1 . . . . . . . . Highest Temperature 300 | . 27 123 . 27 300 232 256 . 40 . Average Temperature 55 | . 11 54 . 11 70 92 40 . 21 . Received Heat Transfer 1974 | . 132 87 . 12 324 51 1035 81 27 225 Effects 1 | . . . . . . . 1 . . . Energy Bleed 1 | . . . . . . . 1 . . . Siege Activations . | . . . . . . . . . . . Martial Activations . | . . . . . . . . . . . Shielding Activations . | . . . . . . . . . . . Robots Disrupted . | . . . . . . . . . . . Combat Hostiles . | . . . . . . . . . . . Robots Corrupted . | . . . . . . . . . . . Combat Hostiles . | . . . . . . . . . . . Parts Fried . | . . . . . . . . . . . Impact Corruptions . | . . . . . . . . . . . Robots Melted 5 | . . . . . 1 . 4 . . . Combat Hostiles 4 | . . . . . 1 . 3 . . . Parts Melted 32 | . . . . 1 14 5 12 . . . Heat Transferred 12004 | . 111 555 . 518 4218 1190 5412 . . . Parts Sabotaged . | . . . . . . . . . . . Parts Stolen . | . . . . . . . . . . . Parts Stripped . | . . . . . . . . . . . Power Chain Reactions . | . . . . . . . . . . . Alert | -11 -10 -10 -10 -9 -8 -7 -6 -5 -4 -3 ------- Run | Yrd Mat Min Exi Min Mat Fac Fac Fac Fac Res Maximum Alert Level 1 | . . . . . . . 1 . . 1 Low Security (%) 88 | 100 100 100 . 100 100 100 60 100 100 79 Level 1 11 | . . . . . . . 39 . . 20 Level 2 . | . . . . . . . . . . . Level 3 . | . . . . . . . . . . . Level 4 . | . . . . . . . . . . . Level 5 . | . . . . . . . . . . . High Security . | . . . . . . . . . . . Max Security . | . . . . . . . . . . . Peak Influence 374 | . 60 80 . 70 175 100 374 174 52 364 Initial 174 | . . . . . 4 73 . 174 35 27 Average 67 | . 16 18 . 11 76 28 121 135 7 132 Influence Increases 2962 | . 165 202 . 197 537 211 910 . 90 650 Destroy 0b10 Robot/C 1420 | . 100 140 . 160 360 120 400 . . 140 Destroy 0b10 Robot/NC 65 | . . 5 . . 15 5 35 . . 5 Destroy Leader 400 | . 20 30 . 30 124 40 116 . . 40 Allied During Kill 18 | . . 11 . 7 . . . . . . Successful Hack 38 | . . . . . 5 29 4 . . . Disable Machine 210 | . . 15 . . 30 15 150 . . . Destroy Structure 91 | . . 1 . . 3 2 85 . . . Partial Spotted 15 | . . . . . . . . . . 15 Lose Combat Pursuer 705 | . 45 . . . . . 120 . 90 450 Influence Decreases 2839 | . 165 165 37 185 386 374 554 282 112 579 Entered New Map 381 | . . . 37 . 8 90 . 182 39 25 Time Decay 1805 | . 165 165 . 152 368 284 244 60 73 294 Search Patrol Dispatched 100 | . . . . . . . . . . 100 Lost Part 520 | . . . . . 10 . 310 40 . 160 Lost Ally 33 | . . . . 33 . . . . . . Squads Dispatched 31 | . . . . . 2 5 17 . 3 4 Investigation 2 | . . . . . 1 1 . . . . Extermination 12 | . . . . . . 1 6 . 1 4 Reinforcement 9 | . . . . . 1 . 8 . . . Assault 2 | . . . . . . . . . 2 . Garrison 6 | . . . . . . 3 3 . . . Intercept . | . . . . . . . . . . . Searches Triggered 1 | . . . . . . . . . . 1 Construction Impeded 2 | . . . . . . . 2 . . . Haulers Reinforced 1 | . . . . . . . 1 . . . Active Scanning Responses . | . . . . . . . . . . . Cargo Convoy Interrupts . | . . . . . . . . . . . Stealth | -11 -10 -10 -10 -9 -8 -7 -6 -5 -4 -3 --------- Run | Yrd Mat Min Exi Min Mat Fac Fac Fac Fac Res Distress Signals 9 | . 1 . . . 2 . 2 . . 4 Communications Jammed . | . . . . . . . . . . . Distress Signals . | . . . . . . . . . . . Times Spotted 182 | . 11 7 . 7 27 4 47 9 16 54 Peak Tracking Total 14 | . 3 2 . 3 5 1 14 8 11 12 Tactical Retreats 17 | . 2 . . . . . 3 . 3 9 Traps | -11 -10 -10 -10 -9 -8 -7 -6 -5 -4 -3 ------- Run | Yrd Mat Min Exi Min Mat Fac Fac Fac Fac Res Traps Triggered 3 | . 2 . . . . . . . . 1 Indirectly . | . . . . . . . . . . . Trap Hack Attempts . | . . . . . . . . . . . Triggered . | . . . . . . . . . . . Disarmed . | . . . . . . . . . . . Reprogrammed . | . . . . . . . . . . . Reused . | . . . . . . . . . . . Traps Extracted . | . . . . . . . . . . . Installed . | . . . . . . . . . . . Triggered . | . . . . . . . . . . . Machines | -11 -10 -10 -10 -9 -8 -7 -6 -5 -4 -3 ---------- Run | Yrd Mat Min Exi Min Mat Fac Fac Fac Fac Res Machines Disabled 14 | . . 1 . . 2 1 10 . . . Max in Single Turn 5 | . . 1 . . 2 1 5 . . . Garrison Access 1 | . . . . . . . . . 1 . Machines Repaired . | . . . . . . . . . . . Machines Dismantled . | . . . . . . . . . . . Machines Sabotaged . | . . . . . . . . . . . Overloaded Fab Kills . | . . . . . . . . . . . Hacking | -11 -10 -10 -10 -9 -8 -7 -6 -5 -4 -3 --------- Run | Yrd Mat Min Exi Min Mat Fac Fac Fac Fac Res Machines Accessed 15 | . 4 . 1 . 3 4 3 . . . Terminals 9 | . 4 . . . 2 2 1 . . . Fabricators . | . . . . . . . . . . . Repair Stations 2 | . . . . . . 1 1 . . . Recycling Units 1 | . . . . . . 1 . . . . Scanalyzers 2 | . . . . . 1 . 1 . . . Garrison Access . | . . . . . . . . . . . Total Hacks 29 | . 5 . 1 . 7 7 9 . . . Successful 17 | . 2 . 1 . 4 4 6 . . . Failed 11 | . 3 . . . 2 3 3 . . . Catastrophic 2 | . . . . . . 2 . . . . Database Lockouts 1 | . . . . . 1 . . . . . Manual 9 | . 4 1 . . 2 2 . . . . Terminals 13 | . 5 . . . 3 3 2 . . . Fabricators . | . . . . . . . . . . . Repair Stations 6 | . . . . . . 3 3 . . . Recycling Units 1 | . . . . . . 1 . . . . Scanalyzers 8 | . . . . . 4 . 4 . . . Garrison Access . | . . . . . . . . . . . Terminal Hacks 4 | . 1 . 1 . 1 . 1 . . . Record 1 | . . . 1 . . . . . . . Alert Level 1 | . . . . . . . 1 . . . Hauler Manifests 1 | . 1 . . . . . . . . . Zone Layout 1 | . . . . . 1 . . . . . Fabricator Hacks . | . . . . . . . . . . . Repair Station Hacks 4 | . . . . . . 2 2 . . . Scan Component 2 | . . . . . . 1 1 . . . Repair 2 | . . . . . . 1 1 . . . Recycling Unit Hacks 1 | . . . . . . 1 . . . . Report Inventory 1 | . . . . . . 1 . . . . Scanalyzer 6 | . . . . . 3 . 3 . . . Insert Component 1 | . . . . . 1 . . . . . Analyze 1 | . . . . . 1 . . . . . Retrieve Study 4 | . . . . . 1 . 3 . . . Garrison Access Hacks . | . . . . . . . . . . . Unauthorized Hacks 2 | . 1 . . . . 1 . . . . Terminals 2 | . 1 . . . . 1 . . . . Botnet 2 | . 1 . . . . 1 . . . . Fabricators . | . . . . . . . . . . . Repair Stations . | . . . . . . . . . . . Recycling Units . | . . . . . . . . . . . Scanalyzers . | . . . . . . . . . . . Garrison Access . | . . . . . . . . . . . Data Cores Recovered . | . . . . . . . . . . . Used . | . . . . . . . . . . . Hacking Detections 9 | . 2 . . . 2 4 1 . . . Full Trace Events 2 | . . . . . 1 1 . . . . Feedback Events 1 | . . . . . . 1 . . . . Corruption 1 | . . . . . . 1 . . . . Feedback Blocked . | . . . . . . . . . . . Robot Schematics Acquired . | . . . . . . . . . . . Robots Built . | . . . . . . . . . . . Authchips . | . . . . . . . . . . . Time . | . . . . . . . . . . . Total Robot Build Rating . | . . . . . . . . . . . Part Schematics Acquired 1 | . . . . . 1 . . . . . Parts Built . | . . . . . . . . . . . Authchips . | . . . . . . . . . . . Time . | . . . . . . . . . . . Total Part Build Rating . | . . . . . . . . . . . Part Studies Acquired 4 | . . . . . 1 . 3 . . . Parts Repaired 2 | . . . . . . 1 1 . . . Time 105 | . . . . . . 54 51 . . . Parts Recycled . | . . . . . . . . . . . Recycled Matter . | . . . . . . . . . . . Retrieved Matter . | . . . . . . . . . . . Retrieved Components . | . . . . . . . . . . . Parts Scanalyzed 1 | . . . . . 1 . . . . . Part Schematics Acquired 1 | . . . . . 1 . . . . . Parts Damaged . | . . . . . . . . . . . Bothacking | -11 -10 -10 -10 -9 -8 -7 -6 -5 -4 -3 ------------ Run | Yrd Mat Min Exi Min Mat Fac Fac Fac Fac Res Used RIF Installer . | . . . . . . . . . . . Robots Hacked . | . . . . . . . . . . . Non-combat . | . . . . . . . . . . . Combat . | . . . . . . . . . . . Robot Hacks Applied . | . . . . . . . . . . . Relay Couplers Released 5 | . . . . . . . 4 . 1 . Machine Destruction 1 | . . . . . . . . . 1 . Programmers 4 | . . . . . . . 4 . . . Fabnet Peak Effective % . | . . . . . . . . . . . Robots Rewired . | . . . . . . . . . . . Allies Hacked . | . . . . . . . . . . . Hacks Repelled . | . . . . . . . . . . . Allies | -11 -10 -10 -10 -9 -8 -7 -6 -5 -4 -3 -------- Run | Yrd Mat Min Exi Min Mat Fac Fac Fac Fac Res Total Allies 3 | . . 3 . . . . . . . . Largest Group 3 | . . 3 3 3 . . . . . . Highest-Rated Group 40 | . . 40 40 40 . . . . . . Highest-Rated Ally 16 | . . 16 16 16 . . . . . . Total Orders . | . . . . . . . . . . . Ally Attacks 23 | . . 6 . 17 . . . . . . Total Damage 234 | . . 44 . 190 . . . . . . Kills 4 | . . 2 . 2 . . . . . . Allies Corrupted . | . . . . . . . . . . . Allies Melted . | . . . . . . . . . . . Intel | -11 -10 -10 -10 -9 -8 -7 -6 -5 -4 -3 ------- Run | Yrd Mat Min Exi Min Mat Fac Fac Fac Fac Res Active Infowar (turns) 4244 | . . . . 1 1388 896 1732 . 98 129 Sensors 3981 | . . . . 1 1352 896 1732 . . . Terrain 98 | . . . . . . . . . 98 . Traps 2507 | . . . . . 778 . 1729 . . . Jamming 129 | . . . . . . . . . . 129 Robot Analysis Total . | . . . . . . . . . . . Derelict Logs Recovered 3 | . . 1 . 2 . . . . . . Drone Launches . | . . . . . . . . . . . Drone Recoveries . | . . . . . . . . . . . Exploration | -11 -10 -10 -10 -9 -8 -7 -6 -5 -4 -3 ------------- Run | Yrd Mat Min Exi Min Mat Fac Fac Fac Fac Res Turns Passed 9479 | 98 621 914 914 841 1556 978 2156 137 431 833 Spaces Moved 5774 | 56 289 534 572 482 666 439 988 119 367 1262 Core 43 | 36 4 . . . . . . . . 3 Treads 3789 | 20 285 534 572 482 666 439 791 . . . Legs 886 | . . . . . . . 197 119 367 203 Wheels 3 | . . . . . . . . . . 3 Hover . | . . . . . . . . . . . Flight 1053 | . . . . . . . . . . 1053 Fastest Speed 39 | 50 100 160 160 160 157 161 110 110 110 39 Average Speed 133 | 144 159 160 160 160 163 161 165 110 110 52 Slowest Speed 250 | 200 160 160 160 160 250 161 217 110 220 250 Overloaded Moves 1 | . . . . . . . . . 1 . Propulsion Burnouts . | . . . . . . . . . . . Robots Hopped 15 | . . . . . . . . . . 15 Potential Cave-ins . | . . . . . . . . . . . Cave-ins Triggered . | . . . . . . . . . . . Exploration Rate (%) 45 | 4 60 98 90 95 45 8 36 4 8 47 Regions Visited 10 Branch Regions 3 Pre-discovered Areas 1 | . . . . 1 . . . . . . Known Exits Taken 5 | . . . . . 1 1 1 1 1 . Unknown Exits Taken 5 | 1 1 1 1 1 . . . . . . Scrap Searched 4 | . . 3 . 1 . . . . . . Spaces Dug . | . . . . . . . . . . . Terrain Destroyed 92 | . . 1 . . . . 91 . . . Melee . | . . . . . . . . . . . Projectile 7 | . . . . . . . 7 . . . AOE 85 | . . 1 . . . . 84 . . . Terrain Rammed . | . . . . . . . . . . . Walls Destroyed . | . . . . . . . . . . . Machines Disabled . | . . . . . . . . . . . Actions | -11 -10 -10 -10 -9 -8 -7 -6 -5 -4 -3 --------- Run | Yrd Mat Min Exi Min Mat Fac Fac Fac Fac Res Total 7094 | 73 397 570 571 534 1024 685 1365 125 391 1359 Wait 813 | . 49 10 . 35 256 206 229 . 2 26 Move 5734 | 55 288 533 571 481 665 438 987 118 366 1232 Hop 15 | . . . . . . . . . . 15 Pick Up 97 | 12 9 4 . 2 14 9 23 3 6 15 Fast Attach 33 | . 7 . . . . 3 10 1 4 8 Attach 53 | 6 1 . . . 5 2 23 2 3 11 Detach 3 | . . . . . . . 2 . . 1 Swap 38 | . 4 2 . 4 19 3 6 . . . Drop 69 | . 10 4 . 3 15 11 12 1 2 11 Fire 180 | . 28 12 . 9 48 12 70 . 1 . Melee 31 | . . . . . . . . . . 31 Ram 8 | . . . . . . . . . . 8 Kick 9 | . . . . . . . 1 . 7 1 Crush 11 | . 1 5 . . 2 1 2 . . . Escape Stasis . | . . . . . . . . . . . Rewire . | . . . . . . . . . . . Trap . | . . . . . . . . . . . Miscellaneous . | . . . . . . . . . . . Route ------- -11/Scrapyard -10/Materials (discovered 3 exits: [*Mat] / *Min x2) -10/Mines (discovered 4 exits: [*Mat x2] / *Exi / [*Sub]) -10/Exiles (discovered 2 exits: [*Min x2]) -9/Mines (discovered 2 exits: *Mat x2) -8/Materials (discovered 2 exits: *Fac x2) -7/Factory -6/Factory -5/Factory -4/Factory -3/Research History --------- Turn | Location | Event 30 | -11/Scrapyard | Discovered new exit (range 13) 99 | -11/Scrapyard | Entered Materials 225 | -10/Materials | Discovered new exit (range 7) 313 | -10/Materials | Build established: Mutant 333 | -10/Materials | Discovered new exit (range 8) 709 | -10/Materials | Discovered new exit (range 8) 720 | -10/Materials | Entered Mines 799 | -10/Mines | Discovered new exit (range 10) 1060 | -10/Mines | Discovered new exit (range 15) 1214 | -10/Mines | Assisted by bots powering up and referring to "LRC-V3" 1254 | -10/Mines | YI-UF0 nonchalantly dropped a Grenade Launcher on the ground 1439 | -10/Mines | Discovered new exit (range 12) 1575 | -10/Mines | Learned 8 Materials zone layouts 1620 | -10/Mines | Discovered new exit (range 9) 1634 | -10/Mines | Entered Exiles 1634 | -10/Exiles | Found Exiles lab abandoned 1634 | -10/Exiles | Accompanied by 3 allies 1662 | -10/Exiles | Discovered new exit (range 15) 2358 | -10/Exiles | Discovered new exit (range 14) 2548 | -10/Exiles | Entered Mines 2548 | -9/Mines | Accompanied by 3 allies 2772 | -9/Mines | Learned Materials security intel 2970 | -9/Mines | Discovered new exit (range 9) 3197 | -9/Mines | Found a damaged Exp. Sensor Array with a note attached 3200 | -9/Mines | Found Prototype Device 3201 | -9/Mines | Identified Exp. Sensor Array 3250 | -9/Mines | Discovered new exit (range 6) 3309 | -9/Mines | Learned location of Zion (-7) 3389 | -9/Mines | Entered Materials 3389 | -8/Materials | Evolved 4 slots: Utility x3, Weapon x1 3390 | -8/Materials | Identified exit to Factory 3800 | -8/Materials | Build established: Skirmisher 4589 | -8/Materials | Discovered exit to Factory (range 16) 4807 | -8/Materials | Central database locked down 4945 | -8/Materials | Entered Factory 4945 | -7/Factory | Evolved 2 slots: Power x1, Propulsion x1 4997 | -7/Factory | Discovered new exit (range 13) 5017 | -7/Factory | Identified exit to Factory 5516 | -7/Factory | Garrison activated, responded to threat 5533 | -7/Factory | Repaired Exp. Sensor Array 5923 | -7/Factory | Entered another Factory area 5923 | -6/Factory | Evolved 2 slots: Utility x2 6817 | -6/Factory | Repaired Imp. Medium Laser 7092 | -6/Factory | Garrison activated, responded to threat 7207 | -6/Factory | Destroyed 10 combat bots 7253 | -6/Factory | Lost 15 parts (3p3n5u4w) 7836 | -6/Factory | Lost 3 parts (1p1n1w) 7916 | -6/Factory | Core integrity fell below 50% 7958 | -6/Factory | Lost 9 parts (1p1n5u2w) 8061 | -6/Factory | Discovered new exit (range 4) 8069 | -6/Factory | Identified exit to Factory 8074 | -6/Factory | Lost 4 parts (3u1w) 8079 | -6/Factory | Entered another Factory area 8079 | -5/Factory | Evolved 2 slots: Propulsion x1, Utility x1 8166 | -5/Factory | Build established: Mutant 8193 | -5/Factory | Discovered new exit (range 15) 8209 | -5/Factory | Identified exit to Factory 8216 | -5/Factory | Entered another Factory area 8216 | -4/Factory | Evolved 2 slots: Utility x2 8240 | -4/Factory | Lost 3 parts (1n1u1w) 8512 | -4/Factory | Discovered new exit (range 4) 8517 | -4/Factory | Identified exit to Research 8595 | -4/Factory | Spotted B-86 Titan 8642 | -4/Factory | Lost 3 parts (1p2u) 8647 | -4/Factory | Entered Research 8647 | -3/Research | Evolved 2 slots: Utility x2 9187 | -3/Research | Lost 3 parts (2p1u) 9309 | -3/Research | Core integrity fell below 50% 9353 | -3/Research | Core integrity fell below 20% 9379 | -3/Research | Lost 11 parts (3p3n4u1w) 9397 | -3/Research | Search patrols dispatched 9480 | -3/Research | Destroyed by P-80 Master with Gamma Rifle Last Messages --------------- 5S. 09439_ R-10 Processor suffers critical hit (Destroy). 09439_ Slug penetrates R-10 Processor. 09442_ Slug penetrates Wall. 09450_ Penetrated by Slug. 09450_ Slug penetrates Wall. 09455_ System corrupted: Energy discharge (-140). 09461_ P-80 Master resets U-05 Engineer, system corruption cleaned. 09466_ K-01 Serf cleans the Graviton Restrictor. 09469_ W-44 Eye sends out distress signal. 09472_ Field Propulsion Array destroyed. 09473_ Slammed into P-80 Master. 09473_ Imp. Targeting Computer broken. 09473_ Destabilizing: Short circuit. 09475_ Slammed into P-80 Master. 09477_ Exp. Energy Well destroyed. 09477_ Slammed into P-80 Master. Map ----- +----------------------------------------------------+ | #??????????????????# # #??####### | | #??????????????????# # #?? # | | #??????????????????# ! ?# #? # | | #??????????????????# ?# #? "" # | | #??????????????????###########/## # """# | | ########?????????????????????# # T"# | | #?????????????????????# + """# | | #?????????????????????# # "" # | | ############?????????## # # | | # ??+ #? ## | | ##### # ? #???##########+#+##########? | | ??# # "" """ #???????# #?????? | | # # "" """ #???????# #?????? | | "" + # "T """ #???????# #?????? | | " # # "" ######### #?????? | | ??# + "" # ## """ """ #?????? | | ????# # """ # ## """ """ #?????? | | ????# # """ # ## """ """ #?????? | | ????# # """ # ## """ """ #?????? | | ????# # # ## """ """ #????# | | ??? # # ??# ###### | | ?? ######+#########+##??# + # | | ? #????# ######## #??# #### # | | #????# #??#+##+#########??# # | | ##########????# ######## p #??# #??????????# # | | ######### #??????##@##??# #??????????# # | | / ######### #???# #??????????# ## | | ?""" ########### #p##### #####??????# ## | | ????????????????# ! + #?# ## | | ????????????????# ################### #?# ## | | ????????????????########??????????????????????# ## | | ??????????????????????????????????????????????# ## | | ?????????????????????????????????????????????## ## | | ??????????????????????????????????????????# ## # | | ??????????????????????????????????????????# | | ??????????????????????????????????????????####= # | | ?????????????????????????????????????????????## ## | | ??????????????????????????????????????????????# #? | | ??????????????????????????????????????????????# #? | | ?????????????????????????????????????????????? ? | | ??????????????????????????????????????????????" ? | | ??????????????????????????????????????????????"T ? | | ????????????????????????????????????????????? ? | | ????????????????????????????????????????????? ? | | ??????????????????????????????????????????????# #? | | ??????????????????????????????????????????????# #? | | ??????????????????????????????????????????????# #? | | ??????????????????????????????????????????????# #? | | ??????????????????????????????????????????????# #? | | ????????????????????????????????????????#######+## | +----------------------------------------------------+ Best States ------------- Heat Dissipation 94 Coolant Potential 80 Energy Generation 31 Energy Capacity 940 Matter Stores 300 Matter Capacity 300 Sight Range 16 Robot Scan Range 20 Terrain Scan Range 16 Terrain Scan Density 10 Jamming Range 14 Armor Coverage 600 Resistance: KI 30 Resistance: TH 20 Resistance: EX 25 Resistance: EM 25 Propulsion Shielding 66 Phase Shifting 5 Evasion (%) 67 Targeting Accuracy 6 Melee Accuracy 5 Target Analysis 6 Recoil Reduction 3 Item Schematics ----------------- Imp. Heat Sink | -8/Materials | Scanalyzed Robot Schematics ------------------ None Fabricated ------------ Nothing Repaired ---------- Exp. Sensor Array | 3% | -7/Factory Imp. Medium Laser | 28% | -6/Factory Studied --------- Adv. Treads | -8/Materials | Hacked Field Laser | -6/Factory | Hacked Imp. Medium Treads | -6/Factory | Hacked Gatling Laser | -6/Factory | Hacked Alien Tech Used ----------------- None Achievements -------------- None Challenges ------------ None Game ------ Seed BombardmentTimingMatterbank Manual? 0 Play Time 01:42:03 Cumulative 65.3 hours Start 2026.09.07 @ 00:40:48 End 2026.09.07 @ 02:24:38 Sessions 1 Manual Loads 0 Difficulty Rogue Special Mode None Game No. 70 Rogue 15 Adventurer 55 Explorer 0 Win Type - Total 1 Types 1/0/0/0/0/0/0/0/0/0 Lore% 33 Gallery% 35 Achievement% 26 Wizard Run 0 Options --------- Layout 1 ASCII 0 Keyboard 0 Movement Mouse Keybinds 0 Fullscreen 2 Font 24/Smallcaps Map View 50x35 Zoom Use 0% Tactical HUD 1 Map Filters NONE Filters NONE Steam 1 RUN: 0ac7eb8e-349b-4835-8970-d59fea01d8fc